bitfinex/quotes_BTCUSD_20220101
["timestamp","ask_amount","ask_price","bid_price","bid_amount"]
[1641035799064,0.00801167,46997.0,46989.0,0.03879098]
[1641035799265,0.00801167,46997.0,46989.0,0.01904986]
[1641035799864,0.00801167,46997.0,46992.0,0.1]
[1641035800669,0.00801167,46997.0,46993.0,0.340299]
[1641035801310,0.053202,47000.0,46993.0,0.340299]
[1641035801507,0.053202,47000.0,46993.0,0.550299]
[1641035802109,8.486e-05,46999.0,46993.0,0.57065999]
[1641035802311,8.486e-05,46999.0,46993.0,0.82097964]
[1641035802507,8.486e-05,46999.0,46995.0,0.1]
[1641035802710,8.486e-05,46999.0,46996.0,0.340299]
[1641035803312,0.00801201,46999.0,46996.0,0.340299]
[1641035803908,0.00801201,46999.0,46996.0,0.35932445]
[1641035804711,0.06121601,46999.0,46996.0,0.340299]
[1641035804969,0.06121601,46999.0,46996.0,0.02012347]
[1641035806165,0.06121601,46999.0,46993.0,0.21]
[1641035806365,0.053204,46999.0,46995.0,0.1]
[1641035807069,0.00122036,47007.0,46998.0,0.1]
[1641035807265,0.0003,47010.0,46997.0,0.26165763]
[1641035807469,0.0003,47010.0,46998.0,0.340299]
[1641035807666,7.303e-05,47007.0,46998.0,0.34184269]
[1641035807867,0.00861,46999.0,46998.0,0.59502263]
[1641035808067,0.00861,46999.0,46998.0,0.85880193]
[1641035808469,0.00861,46999.0,46998.0,0.34184269]
[1641035809107,0.00861,46999.0,46998.0,0.36213755]
[1641035810007,0.00861,46999.0,46998.0,0.38149327]
[1641035810207,0.00861,46999.0,46998.0,0.36119841]
[1641035810708,0.00861,46999.0,46998.0,0.02089941]
[1641035811608,0.00861,46999.0,46998.0,0.03992459]
[1641035811809,0.00861,46999.0,46998.0,0.02056887]
[1641035812010,0.00861,46999.0,46998.0,0.36086787]
[1641035812209,0.00861,46999.0,46998.0,0.34184269]
[1641035812869,0.00868921,46999.0,46998.0,0.33684269]
[1641035813067,0.00868921,46999.0,46998.0,0.35565843]
[1641035813269,0.06189321,46999.0,46998.0,0.35565843]
[1641035813969,0.06189321,46999.0,46998.0,0.37744788]
[1641035814172,0.06189321,46999.0,46998.0,0.35863214]
[1641035814368,0.00868921,46999.0,46998.0,0.35863214]
[1641035815170,0.00868921,46999.0,46998.0,0.35516256]
[1641035816216,0.00868921,46999.0,46998.0,0.47570391]
[1641035816413,0.00868921,46999.0,46998.0,0.45738404]
[1641035816815,0.00868921,46999.0,46998.0,0.35738404]
[1641035817112,0.00868921,46999.0,46998.0,0.37586265]
[1641035817313,0.00868921,46999.0,46998.0,0.3553213]
[1641035818013,7.921e-05,46999.0,46998.0,0.37530217]
[1641035818412,7.921e-05,46999.0,46998.0,0.35682356]
[1641035819012,7.921e-05,46999.0,46998.0,0.3768625]
[1641035819213,7.921e-05,46999.0,46998.0,0.35688163]
[1641035820061,7.921e-05,46999.0,46998.0,0.37794701]
[1641035820461,7.921e-05,46999.0,46998.0,0.33684269]
[1641035821064,7.921e-05,46999.0,46998.0,0.3555451]
[1641035822062,7.921e-05,46999.0,46998.0,0.37664169]
[1641035822263,7.921e-05,46999.0,46998.0,0.35793928]
[1641035822462,7.921e-05,46999.0,46998.0,0.02109659]
[1641035822864,0.07560653,46999.0,46998.0,0.02109659]
[1641035823067,0.42432363,46999.0,46998.0,0.02109659]
[1641035823267,0.95,46998.0,46996.0,0.02699372]
[1641035823466,1.08719532,46997.0,46993.0,0.21899463]
[1641035823713,0.08526583,46994.0,46993.0,0.21899463]
[1641035823913,0.28321343,46992.0,46991.0,0.0198523]
[1641035824117,0.34165943,46992.0,46991.0,0.0198523]
[1641035824315,0.39165943,46992.0,46991.0,0.0198523]
[1641035824614,0.053226,46987.0,46981.0,0.32734107]
[1641035824814,0.053226,46987.0,46981.0,0.00022]
[1641035826013,0.008446,46986.0,46981.0,0.00022]
[1641035826315,0.52902969,46985.0,46981.0,0.00022]
[1641035826915,0.4758032,46985.0,46981.0,0.00022]
[1641035827114,0.49611278,46985.0,46981.0,0.00022]
[1641035827565,0.008446,46984.0,46981.0,0.00022]
[1641035828367,0.1099374,46985.0,46981.0,0.00022]
[1641035828368,0.08962782,46985.0,46981.0,0.00022]
[1641035828967,0.08962782,46985.0,46979.0,0.09555]
[1641035829170,0.053222,46982.0,46979.0,0.09555]
[1641035829369,0.053222,46982.0,46977.0,0.00011]
[1641035831418,0.053222,46982.0,46977.0,0.09566]
[1641035831817,0.053222,46982.0,46978.0,0.21011]
[1641035832219,0.053222,46982.0,46978.0,0.30566]
[1641035833022,0.053222,46982.0,46978.0,0.30764446]
[1641035833221,0.06123108,46982.0,46978.0,0.30764446]
[1641035833420,0.05955894,46982.0,46978.0,0.30764446]
[1641035835167,0.05955894,46982.0,46978.0,0.30264446]
[1641035835668,0.05955894,46982.0,46978.0,0.20709446]
[1641035836469,0.06015886,46982.0,46978.0,0.20709446]
[1641035836971,0.50098647,46982.0,46978.0,0.20709446]
[1641035838268,0.52722896,46982.0,46978.0,0.20709446]
[1641035838469,0.52722896,46982.0,46978.0,0.20828868]
[1641035839314,0.54838875,46982.0,46978.0,0.20828868]
[1641035839513,0.53015534,46982.0,46978.0,0.20828868]
[1641035840414,0.53058427,46982.0,46978.0,0.20828868]
[1641035840614,0.53058427,46982.0,46978.0,0.30383868]
[1641035841225,0.55249046,46982.0,46978.0,0.30383868]
[1641035841414,0.53090174,46982.0,46978.0,0.30383868]
[1641035841614,0.52289266,46982.0,46978.0,0.30383868]
[1641035842014,0.52289266,46982.0,46978.0,0.29883868]
[1641035842865,0.54317867,46982.0,46978.0,0.29883868]
[1641035843066,0.52127248,46982.0,46978.0,0.29883868]
[1641035843262,0.54820324,46982.0,46978.0,0.29883868]
[1641035843564,0.50899555,46982.0,46978.0,0.29883868]
[1641035843964,0.50899555,46982.0,46978.0,0.20328868]
[1641035844163,0.8193893,46982.0,46978.0,0.20328868]
[1641035844366,0.053233,46980.0,46978.0,0.20328868]
[1641035844568,0.053233,46980.0,46978.0,0.20174868]
[1641035844768,0.958446,46979.0,46978.0,0.20064868]
[1641035844969,0.95974269,46979.0,46978.0,0.19965868]
[1641035845165,0.15974269,46979.0,46978.0,0.19954868]
[1641035845465,0.28527001,46979.0,46978.0,0.19954868]
[1641035845664,0.28501396,46979.0,46978.0,0.19954868]
[1641035846123,0.18501396,46979.0,46978.0,0.19954868]
[1641035848128,0.09388001,46979.0,46978.0,0.19954868]
[1641035849426,0.19388001,46979.0,46978.0,0.19954868]
[1641035850464,0.117056,46979.0,46978.0,0.19954868]
[1641035850666,0.117056,46979.0,46978.0,0.29509868]
[1641035850667,0.017056,46979.0,46978.0,0.29509868]
[1641035851666,0.00861,46979.0,46978.0,0.29509868]
[1641035853912,0.00867232,46979.0,46978.0,0.29509868]
[1641035856932,0.00867232,46979.0,46978.0,0.29009868]
[1641035858260,6.232e-05,46979.0,46978.0,0.29009868]
[1641035859861,0.00867232,46979.0,46978.0,0.29009868]
[1641035860464,0.00867232,46979.0,46978.0,0.19454868]
[1641035860663,0.01711832,46979.0,46978.0,0.19454868]
[1641035860862,0.01711832,46979.0,46978.0,0.29009868]
[1641035864420,0.00867232,46979.0,46978.0,0.29009868]
[1641035866869,0.00867232,46979.0,46978.0,0.19454868]
[1641035867468,0.00867232,46979.0,46978.0,0.29009868]
[1641035868911,0.01711832,46979.0,46978.0,0.29009868]
[1641035869613,0.01711832,46979.0,46978.0,0.19454868]
[1641035870012,0.00850832,46979.0,46978.0,0.19454868]
[1641035870413,0.35241288,46979.0,46978.0,0.19454868]
[1641035870615,0.45241288,46979.0,46977.0,0.00011]
[1641035870819,0.50582179,46979.0,46977.0,0.00011]
[1641035871016,0.008446,46978.0,46977.0,0.00011]
[1641035872472,0.31824125,46978.0,46977.0,0.00011]
[1641035873474,0.33650507,46978.0,46977.0,0.00011]
[1641035873773,0.33650507,46978.0,46977.0,0.21011]
[1641035874372,0.48650507,46978.0,46977.0,0.21011]
[1641035875271,0.49020759,46978.0,46977.0,0.21011]
[1641035875673,0.48771293,46978.0,46977.0,0.21011]
[1641035875871,0.33771293,46978.0,46977.0,0.21011]
[1641035876514,0.35885016,46978.0,46977.0,0.21011]
[1641035876916,0.31824125,46978.0,46977.0,0.21011]
[1641035877516,0.33634188,46978.0,46977.0,0.21011]
[1641035877916,0.33525201,46978.0,46977.0,0.21011]
[1641035879117,0.48525201,46978.0,46977.0,0.21011]
[1641035879315,0.50624559,46978.0,46977.0,0.21011]
[1641035879519,0.48814496,46978.0,46977.0,0.21011]
[1641035879718,0.50798494,46978.0,46977.0,0.21011]
[1641035880366,0.46715138,46978.0,46977.0,0.21011]
[1641035880566,0.48740719,46978.0,46977.0,0.21011]
[1641035881567,0.50828138,46978.0,46977.0,0.21011]
[1641035881866,0.48802557,46978.0,46977.0,0.21011]
[1641035882866,0.49663557,46978.0,46977.0,0.30566]
[1641035883268,0.51777952,46978.0,46977.0,0.30566]
[1641035883468,0.49690533,46978.0,46977.0,0.30566]
[1641035883718,0.34690533,46978.0,46977.0,0.30566]
[1641035883921,0.03711008,46978.0,46977.0,0.30566]
[1641035884320,0.05598493,46978.0,46977.0,0.30566]
[1641035885119,0.01596613,46978.0,46977.0,0.30566]
[1641035885920,0.00861,46978.0,46977.0,0.30566]
[1641035886924,0.00361,46978.0,46977.0,0.30566]
[1641035889694,0.00361,46978.0,46977.0,0.21011]
[1641035889894,0.00361,46978.0,46977.0,0.30566]
[1641035889895,0.010944,46978.0,46977.0,0.30566]
[1641035894622,0.010644,46978.0,46977.0,0.21011]
[1641035895068,0.0107055,46978.0,46977.0,0.21011]
[1641035897971,0.0193155,46978.0,46977.0,0.21011]
[1641035901224,0.0193155,46978.0,46977.0,0.53156864]
[1641035901428,0.0193155,46978.0,46977.0,0.80198894]
[1641035901429,0.0119815,46978.0,46977.0,0.80198894]
[1641035901926,0.0119815,46978.0,46977.0,1.14240994]
[1641035902376,0.00765308,46980.0,46977.0,1.45557949]
[1641035902568,0.00765308,46980.0,46978.0,0.34168462]
[1641035902768,0.00765308,46980.0,46979.0,0.39585752]
[1641035902967,0.00765308,46980.0,46979.0,0.73627852]
[1641035905774,0.01626308,46980.0,46979.0,0.73627852]
[1641035906426,0.00861,46980.0,46979.0,0.73627852]
[1641035908127,0.0083538,46980.0,46979.0,0.73627852]
[1641035911473,0.0615778,46980.0,46979.0,0.73627852]
[1641035914427,0.0083538,46980.0,46979.0,0.73627852]
[1641035916626,0.0083538,46980.0,46979.0,0.435971]
[1641035917224,0.00737978,46980.0,46979.0,0.435971]
[1641035917676,0.00737978,46980.0,46979.0,0.68780509]
[1641035918072,0.061834,46981.0,46979.0,0.68780509]
[1641035918272,0.061834,46981.0,46979.0,0.34738409]
[1641035918473,0.061834,46981.0,46979.0,0.09555]
[1641035918874,0.070444,46981.0,46979.0,0.09555]
[1641035924126,0.01722,46981.0,46979.0,0.09555]
[1641035928282,0.01722,46981.0,46980.0,0.340404]
[1641035928724,0.01722,46981.0,46979.0,0.09555]
[1641035929123,0.053226,46980.0,46979.0,0.09555]
[1641035929531,0.01722,46981.0,46979.0,0.435954]
[1641035930227,0.01722,46981.0,46979.0,0.09555]
[1641035930431,0.070444,46981.0,46979.0,0.09555]
[1641035931327,0.070444,46981.0,46980.0,0.340404]
[1641035931529,0.01722,46981.0,46980.0,0.340404]
[1641035933785,0.01722,46981.0,46979.0,0.09555]
[1641035933985,0.05295479,46980.0,46979.0,0.09555]
[1641035934287,0.05295479,46980.0,46979.0,0.435954]
[1641035937229,0.05295479,46980.0,46979.0,0.09555]
[1641035938233,0.01722,46981.0,46979.0,0.435954]
[1641035946927,0.01722,46981.0,46979.0,0.09555]
[1641035947777,0.070444,46981.0,46979.0,0.09555]
[1641035951926,0.070444,46981.0,46980.0,0.340404]
[1641035952125,0.070444,46981.0,46979.0,0.09555]
[1641035954729,0.070444,46981.0,46980.0,0.340404]
[1641035955478,0.070444,46981.0,46979.0,0.09555]
[1641035956280,0.070444,46981.0,46980.0,0.340404]
[1641035956778,0.070444,46981.0,46979.0,0.09555]
[1641035958829,0.01722,46981.0,46980.0,0.340404]
[1641035962777,0.01696381,46981.0,46980.0,0.340404]
[1641035963478,0.01696381,46981.0,46980.0,0.62146008]
[1641035971777,0.01648161,46981.0,46980.0,0.62146008]
[1641035972376,0.00861,46981.0,46980.0,1.53270639]
[1641035972775,0.00861,46981.0,46980.0,1.63270639]
[1641035973075,0.00861,46981.0,46980.0,1.73270639]
[1641035973730,0.00861,46981.0,46980.0,1.78591439]
[1641035973930,1e-05,46981.0,46980.0,1.78591439]
[1641035974131,0.01530702,46983.0,46981.0,0.95]
[1641035974333,0.01530702,46983.0,46982.0,1.3872422]
[1641035974631,0.01530702,46983.0,46982.0,1.5872422]
[1641035975031,0.02391702,46983.0,46982.0,2.0872422]
[1641035975834,0.02391702,46983.0,46982.0,2.1404472]
[1641035976233,0.02391702,46983.0,46982.0,2.14322741]
[1641035976432,0.01626351,46983.0,46982.0,2.14322741]
[1641035978875,0.01626351,46983.0,46982.0,1.19322741]
[1641035979076,0.01626351,46983.0,46982.0,2.25183729]
[1641035979874,0.01626351,46983.0,46982.0,1.19322741]
[1641035980275,0.01626351,46983.0,46982.0,1.26770009]
[1641035981426,0.00861,46983.0,46982.0,1.26770009]
[1641035982426,0.00861,46983.0,46982.0,0.76770009]
[1641035982625,0.00861,46983.0,46982.0,1.09950216]
[1641035983326,0.00861,46983.0,46982.0,2.42550216]
[1641035983526,0.00861,46983.0,46982.0,2.92550216]
[1641035985780,0.00861,46983.0,46982.0,1.79950216]
[1641035986378,0.00861,46983.0,46982.0,1.59950216]
[1641035986984,0.00861,46983.0,46982.0,1.39950216]
[1641035987182,0.00861,46983.0,46982.0,1.31859954]
[1641035987379,0.00861,46983.0,46982.0,1.06770009]
[1641035987579,0.00861,46983.0,46982.0,1.01449509]
[1641035987778,0.00861,46983.0,46982.0,1.06449509]
[1641035987779,0.00867003,46983.0,46982.0,1.06449509]
[1641035987979,0.00867003,46983.0,46982.0,1.21449509]
[1641035989832,0.00867003,46983.0,46982.0,0.71449509]
[1641035990028,0.00867003,46983.0,46982.0,1.0042154]
[1641035990528,3e-08,46983.0,46982.0,1.0042154]
[1641035990730,0.01530759,46985.0,46982.0,1.7042154]
[1641035990930,0.01530759,46985.0,46984.0,1.49161543]
[1641035991129,0.01530759,46985.0,46984.0,1.81928811]
[1641035991331,7.59e-06,46985.0,46984.0,1.81928811]
[1641035992029,0.00861759,46985.0,46984.0,1.36928811]
[1641035992403,0.00861759,46985.0,46984.0,2.49528811]
[1641035992586,0.00861759,46985.0,46984.0,1.36928811]
[1641035992988,0.00900396,46991.0,46990.0,0.00129118]
[1641035993187,0.00900396,46991.0,46990.0,1.90320638]
[1641035993388,0.00900396,46991.0,46990.0,2.45061825]
[1641035993586,0.00900396,46991.0,46990.0,2.06671923]
[1641035993785,0.01761396,46991.0,46990.0,2.06671923]
[1641035994186,0.00861,46991.0,46990.0,2.06671923]
[1641035994588,0.00861,46991.0,46990.0,2.11991623]
[1641035994787,0.00861,46991.0,46990.0,2.19438891]
[1641035995991,0.00861,46991.0,46990.0,2.40438891]
[1641036001184,0.00861,46991.0,46990.0,2.60438891]
[1641036001483,0.00861,46991.0,46990.0,2.10438891]
[1641036002482,0.00861,46991.0,46990.0,1.75780361]
[1641036002883,0.00861,46991.0,46990.0,1.55780361]
[1641036003928,0.00861,46992.0,46990.0,1.55780361]
[1641036004129,0.00861,46992.0,46991.0,0.67824293]
[1641036004528,0.00861,46992.0,46991.0,0.77824293]
[1641036005129,0.01722,46992.0,46991.0,0.77824293]
[1641036005931,0.01722,46992.0,46991.0,1.27824293]
[1641036007030,0.01696381,46992.0,46991.0,1.47824293]
[1641036007888,0.00861,46992.0,46991.0,1.47824293]
[1641036008682,0.00861,46992.0,46991.0,1.27824293]
[1641036008882,0.00861,46992.0,46991.0,1.01487668]
[1641036009284,0.00861,46992.0,46991.0,0.840404]
[1641036009883,0.00861,46992.0,46991.0,0.935954]
[1641036010886,0.00861,46992.0,46991.0,0.435954]
[1641036013632,0.00861,46992.0,46991.0,0.68789665]
[1641036013833,0.00861,46992.0,46991.0,0.435954]
[1641036014033,0.00861,46992.0,46991.0,0.69164348]
[1641036014434,0.00861,46992.0,46991.0,0.79918951]
[1641036014633,0.00861,46992.0,46991.0,0.89164348]
[1641036014893,0.00861,46992.0,46991.0,0.84292788]
[1641036015087,0.00861,46992.0,46991.0,0.89292788]
[1641036019733,0.00861,46992.0,46991.0,0.69292788]
[1641036020137,0.00861,46992.0,46991.0,0.89292788]
[1641036020940,0.00861,46992.0,46991.0,0.435954]
[1641036023283,0.00861,46992.0,46991.0,0.485954]
[1641036023482,0.00861,46992.0,46991.0,0.635954]
[1641036023681,0.00861,46992.0,46991.0,0.88700834]
[1641036023881,0.00861,46992.0,46991.0,0.585954]
[1641036024082,0.00861,46992.0,46991.0,0.435954]
[1641036028440,0.00861,46992.0,46991.0,0.340404]
[1641036028635,0.00861,46992.0,46990.0,0.22396672]
[1641036029236,0.4473303,46991.0,46990.0,0.22396672]
[1641036029438,0.85334678,46991.0,46990.0,0.22396672]
[1641036030284,0.95457904,46991.0,46990.0,0.1566962]
[1641036030482,1.05457904,46991.0,46990.0,0.1566962]
[1641036030683,1.48338167,46991.0,46990.0,0.1566962]
[1641036030883,1.89024241,46991.0,46990.0,0.1566962]
[1641036031982,1.9120012,46991.0,46990.0,0.1566962]
[1641036032184,0.95,46990.0,46986.0,0.01564431]
[1641036032384,0.098962,46987.0,46985.0,0.00900379]
[1641036032584,0.44101744,46986.0,46977.0,0.00011]
[1641036032784,0.00120803,46978.0,46977.0,0.00011]
[1641036033939,0.29240429,46978.0,46977.0,0.00011]
[1641036034138,0.38691629,46978.0,46977.0,0.00011]
[1641036034940,0.40503991,46978.0,46977.0,0.00011]
[1641036035943,0.13221855,46978.0,46977.0,0.00011]
[1641036036141,0.40072276,46978.0,46977.0,0.00011]
[1641036036543,0.39315307,46978.0,46977.0,0.21011]
[1641036036740,0.11409493,46978.0,46977.0,0.21011]
[1641036037141,0.13232781,46978.0,46977.0,0.21011]
[1641036037395,0.11274488,46978.0,46977.0,0.21011]
[1641036037590,0.40480139,46978.0,46977.0,0.21011]
[1641036038190,0.094512,46978.0,46977.0,0.21011]
[1641036038390,0.37851795,46978.0,46977.0,0.21011]
[1641036039795,0.094512,46978.0,46977.0,0.21011]
[1641036039995,0.37019643,46978.0,46977.0,0.21011]
[1641036040196,0.07280115,46979.0,46977.0,0.21011]
[1641036040395,0.01956515,46979.0,46977.0,0.21011]
[1641036040597,0.02045278,46978.0,46977.0,0.21011]
[1641036040999,0.02045278,46978.0,46977.0,0.30566]
[1641036041732,0.00901327,46985.0,46977.0,0.30566]
[1641036042032,0.0741453,46983.0,46977.0,0.21011]
[1641036042228,0.053222,46983.0,46977.0,0.21011]
[1641036042930,0.053222,46983.0,46982.0,0.09555]
[1641036044986,0.053222,46983.0,46978.0,0.09555]
[1641036045189,0.053222,46983.0,46977.0,0.21011]
[1641036046788,0.04595619,46983.0,46977.0,0.21011]
[1641036046993,0.04595619,46983.0,46978.0,0.09754334]
[1641036047788,0.04595619,46983.0,46978.0,0.00199334]
[1641036048092,0.05456519,46983.0,46978.0,0.00199334]
[1641036050229,0.05456519,46983.0,46981.0,0.09555]
[1641036050628,0.05456519,46983.0,46978.0,0.00199334]
[1641036050830,0.05456519,46983.0,46978.0,0.09754334]
[1641036051829,0.05456519,46983.0,46978.0,0.00199334]
[1641036056537,0.01179098,46983.0,46978.0,0.00199334]
[1641036058238,0.00318198,46983.0,46978.0,0.00199334]
[1641036059642,0.00318198,46983.0,46980.0,0.09555]
[1641036060084,0.00318198,46983.0,46978.0,0.00199334]
[1641036060281,0.00318198,46983.0,46980.0,0.09555]
[1641036060681,0.01179198,46983.0,46980.0,0.09555]
[1641036060882,0.01179198,46983.0,46982.0,0.09555]
[1641036061081,0.01179198,46983.0,46978.0,0.00199334]
[1641036061684,0.094512,46982.0,46978.0,0.00199334]
[1641036061881,0.053228,46981.0,46978.0,0.00199334]
[1641036062483,0.053228,46981.0,46980.0,0.09555]
[1641036064531,0.00861,46983.0,46980.0,0.09555]
[1641036065635,0.053223,46982.0,46980.0,0.09555]
[1641036065832,0.053223,46982.0,46978.0,0.00199334]
[1641036066834,0.053223,46982.0,46979.0,0.09555]
[1641036067235,0.053223,46982.0,46979.0,0.09055]
[1641036067989,0.053223,46982.0,46978.0,0.00199334]
[1641036068884,0.053223,46982.0,46980.0,0.09055]
[1641036069084,0.115063,46983.0,46980.0,0.19284602]
[1641036069085,0.00861,46983.0,46980.0,0.19284602]
[1641036069286,0.00861,46983.0,46982.0,1.140404]
[1641036069486,0.00861,46983.0,46982.0,1.190404]
[1641036069690,0.00861,46983.0,46982.0,1.44564455]
[1641036070489,0.00861,46983.0,46982.0,0.59564455]
[1641036070687,0.01866263,46991.0,46982.0,0.64564455]
[1641036070885,0.01866263,46991.0,46983.0,0.340404]
[1641036071133,0.03839853,46991.0,46988.0,0.09055]
[1641036071337,0.0197359,46991.0,46988.0,0.09055]
[1641036071936,0.0197359,46991.0,46984.0,0.24823488]
[1641036072136,0.0197359,46991.0,46981.0,0.26694433]
[1641036072336,0.00861,46992.0,46990.0,0.09055]
[1641036072738,0.061823,46992.0,46990.0,0.09055]
[1641036073337,0.00861,46992.0,46990.0,0.09055]
[1641036073538,0.00861,46992.0,46984.0,0.09055]
[1641036073737,0.00861,46992.0,46985.0,0.340404]
[1641036073738,0.053216,46991.0,46985.0,0.340404]
[1641036073937,0.053216,46991.0,46990.0,0.09055]
[1641036074137,0.00861,46992.0,46986.0,0.24746183]
[1641036074337,0.00861,46992.0,46991.0,0.09055]
[1641036075985,0.01722,46992.0,46991.0,0.09055]
[1641036078492,0.01722,46992.0,46991.0,0.30055]
[1641036079535,0.01722,46992.0,46991.0,0.21]
[1641036080135,0.01696383,46992.0,46991.0,0.21]
[1641036080537,0.11147583,46992.0,46991.0,0.21]
[1641036080736,0.21791183,46992.0,46991.0,0.21]
[1641036081338,0.16469283,46992.0,46991.0,0.21]
[1641036081535,0.07018083,46992.0,46991.0,0.21]
[1641036082036,0.061827,46992.0,46991.0,0.21]
[1641036082488,0.00861,46992.0,46991.0,0.21]
[1641036083486,0.061823,46992.0,46991.0,0.21]
[1641036084388,0.156335,46992.0,46991.0,0.21]
[1641036085989,0.061823,46992.0,46991.0,0.21]
[1641036086236,0.053213,46992.0,46991.0,0.21]
[1641036087034,0.147725,46992.0,46991.0,0.21]
[1641036087436,0.156335,46992.0,46991.0,0.21]
[1641036090391,0.061823,46992.0,46991.0,0.21]
[1641036092093,0.00861,46992.0,46991.0,0.21]
[1641036093193,0.103122,46992.0,46991.0,0.21]
[1641036095244,0.20956,46992.0,46991.0,0.21]
[1641036095846,0.00861,46992.0,46991.0,0.30055]
[1641036097583,0.053209,46997.0,46991.0,0.30055]
[1641036097783,0.053209,46997.0,46996.0,0.09055]
[1641036097983,0.147721,46997.0,46996.0,0.09055]
[1641036098183,0.094512,46997.0,46996.0,0.09055]
[1641036098385,0.44949294,46998.0,46996.0,0.09055]
[1641036098586,0.00861,46997.0,46996.0,0.09055]
[1641036103335,0.00861,46997.0,46996.0,0.09372258]
[1641036104540,0.00861,46997.0,46996.0,0.00317258]
[1641036104735,0.103122,46997.0,46996.0,0.00317258]
[1641036104987,1.1571,46982.0,46977.0,0.00011]
[1641036105186,1.1571,46982.0,46979.0,0.48888812]
[1641036105389,0.48888812,46979.0,46977.0,0.00011]
[1641036105585,0.07552732,46978.0,46977.0,0.00011]
[1641036105788,0.67908136,46975.0,46964.0,0.00011]
[1641036105987,0.17003932,46974.0,46970.0,0.96037247]
[1641036106187,0.18469902,46974.0,46970.0,0.96037247]
[1641036106388,0.28469902,46974.0,46970.0,0.96037247]
[1641036106590,0.053251,46973.0,46970.0,0.00011]
[1641036106788,0.094512,46969.0,46966.0,2.762e-05]
[1641036106990,0.09574501,46967.0,46966.0,2.762e-05]
[1641036107193,0.14574501,46967.0,46966.0,2.762e-05]
[1641036107594,0.09574501,46967.0,46966.0,2.762e-05]
[1641036107890,0.28821906,46967.0,46966.0,2.762e-05]
[1641036108296,0.28949868,46967.0,46966.0,2.762e-05]
[1641036108935,0.33949868,46967.0,46966.0,2.762e-05]
[1641036109234,0.43949868,46967.0,46966.0,2.762e-05]
[1641036109737,1.09715515,46967.0,46966.0,2.762e-05]
[1641036110033,0.64334141,46967.0,46966.0,2.762e-05]
[1641036110233,0.92740691,46967.0,46966.0,0.09057762]
[1641036110438,0.66048355,46967.0,46966.0,2.762e-05]
[1641036111035,0.67956754,46967.0,46966.0,2.762e-05]
[1641036111437,0.69775638,46967.0,46966.0,2.762e-05]
[1641036111637,0.67867239,46967.0,46966.0,2.762e-05]
[1641036112038,0.67747063,46967.0,46966.0,2.762e-05]
[1641036112242,0.9603837,46967.0,46966.0,2.762e-05]
[1641036112491,0.98179555,46967.0,46966.0,2.762e-05]
[1641036112689,0.96360671,46967.0,46966.0,2.762e-05]
[1641036112892,0.32685091,46967.0,46966.0,2.762e-05]
[1641036113090,1.17401346,46967.0,46966.0,2.762e-05]
[1641036113290,0.32685091,46967.0,46966.0,2.762e-05]
[1641036113489,0.34832938,46967.0,46966.0,2.762e-05]
[1641036113689,0.37691753,46967.0,46966.0,2.762e-05]
[1641036113891,0.77999753,46967.0,46966.0,2.762e-05]
[1641036114394,1.77587528,46967.0,46965.0,0.00029528]
[1641036114605,1.77587528,46967.0,46963.0,0.00011]
[1641036114606,0.33859564,46966.0,46963.0,4.528e-05]
[1641036114798,0.05453904,46965.0,46963.0,4.528e-05]
[1641036114990,0.28826272,46964.0,46963.0,4.528e-05]
[1641036115491,1.27469047,46964.0,46963.0,4.528e-05]
[1641036115690,1.37469047,46964.0,46963.0,4.528e-05]
[1641036115891,0.38826272,46964.0,46963.0,4.528e-05]
[1641036116147,0.39347242,46964.0,46963.0,4.528e-05]
[1641036116351,0.95,46963.0,46955.0,0.00011]
[1641036116547,0.00129894,46957.0,46955.0,0.00011]
[1641036116748,0.00129894,46957.0,46954.0,0.00912349]
[1641036116749,1.0199,46955.0,46954.0,0.00912349]
[1641036116948,0.92,46955.0,46954.0,0.00912349]
[1641036117151,1.09552732,46955.0,46948.0,0.00022]
[1641036117352,1.026764,46952.0,46948.0,0.00022]
[1641036117550,0.226764,46952.0,46948.0,0.00022]
[1641036118249,0.52464904,46952.0,46948.0,0.00022]
[1641036118450,1.46464904,46952.0,46951.0,0.3106191]
[1641036118651,2.45107679,46952.0,46951.0,0.3106191]
[1641036118850,0.95,46951.0,46948.0,0.00022]
[1641036119049,0.321515,46950.0,46948.0,0.00022]
[1641036119450,0.421515,46950.0,46948.0,0.00022]
[1641036119895,0.1,46950.0,46948.0,0.00022]
[1641036120088,0.3876513,46950.0,46948.0,0.00022]
[1641036120287,0.3876513,46950.0,46948.0,0.00011]
[1641036120488,0.3876513,46950.0,46947.0,0.00011]
[1641036120489,0.40004876,46949.0,46947.0,0.00011]
[1641036120688,0.33391648,46948.0,46947.0,0.00011]
[1641036121087,0.43391648,46948.0,46947.0,0.00011]
[1641036121889,0.44252648,46948.0,46947.0,0.00011]
[1641036122090,0.10861,46948.0,46947.0,0.00011]
[1641036122290,0.36927236,46948.0,46947.0,0.00011]
[1641036122493,0.26927236,46948.0,46947.0,0.00011]
[1641036122791,0.38729836,46948.0,46947.0,0.00011]
[1641036123189,0.67589001,46948.0,46947.0,0.00011]
[1641036123392,0.63743834,46948.0,46947.0,0.00011]
[1641036123634,0.65708003,46948.0,46947.0,0.00011]
[1641036124233,0.65226206,46948.0,46947.0,0.00011]
[1641036124634,0.67060063,46948.0,46947.0,0.00130503]
[1641036124837,0.65095894,46948.0,46947.0,0.00130503]
[1641036125737,0.65090002,46948.0,46947.0,0.00130503]
[1641036125936,0.64988598,46948.0,46947.0,0.00130503]
[1641036126342,0.64988598,46948.0,46946.0,0.01011]
[1641036126539,0.29795669,46947.0,46946.0,0.01011]
[1641036129092,0.29795669,46947.0,46946.0,0.22011]
[1641036129592,0.49206555,46948.0,46946.0,0.22011]
[1641036129790,0.28078068,46947.0,46946.0,0.22011]
[1641036129990,0.28078068,46947.0,46946.0,0.22153322]
[1641036130194,0.28078068,46947.0,46946.0,0.01153322]
[1641036130395,0.28078068,46947.0,46946.0,0.01000322]
[1641036130594,0.00121092,46942.0,46941.0,0.002]
[1641036130794,0.00121092,46942.0,46937.0,0.03698137]
[1641036130795,1.00405518,46942.0,46937.0,0.03698137]
[1641036130995,0.00122316,46938.0,46937.0,0.03698137]
[1641036131244,1.24838909,46938.0,46937.0,0.03698137]
[1641036131441,0.65391641,46938.0,46937.0,0.03698137]
[1641036131643,0.65391641,46938.0,46934.0,0.0001]
[1641036131644,1.23623593,46938.0,46934.0,0.0001]
[1641036131842,0.13004064,46936.0,46934.0,0.0001]
[1641036132142,0.10451332,46936.0,46934.0,0.0001]
[1641036132543,0.05451332,46936.0,46934.0,0.0001]